{"text_format":"3","workbook":"xlsx","n_sheets":3,"sheets":["Pricing Schedule","Sheet2","Sheet3"],"not_rendered":{"defined_names":1},"read":"whole","date_system":"1900"}

{"sheet":"Pricing Schedule","index":0,"n_rows":114,"n_cols":6,"rows_kept":114,"merged":[[5,0,6,0],[5,1,6,1],[5,2,6,2],[5,3,6,3],[5,4,6,4],[5,5,6,5]]}
["ANNEXUE A: PICING SCHEDULE "]
[]
["Pices to include VAT, embodiey, setup and packaging"]
["Delivey costs not to be included in cost and msut be quoted sepaately fo each ode"]
[]
["No. ","Product/Description","Size","Unit price Including VAT. ","Estimated quantities ","Total Price (Incl VAT) "]
[]
[1,"THERMAL LAB COATS (WHITE)-LONG SLEEVE","81 - 112",null,350,{"$f":"+E8*D8","v":0}]
[2,"THERMAL LAB COATS (WHITE)-LONG SLEEVE",117,null,80,{"$f":"+E9*D9","v":0}]
[3,"THERMAL LAB COATS (WHITE)-LONG SLEEVE",122,null,30,{"$f":"+E10*D10","v":0}]
[4,"THERMAL LAB COATS (WHITE)-LONG SLEEVE",127,null,20,0]
[5,"THERMAL LAB COATS (WHITE)-LONG SLEEVE",132,null,5,0]
[6,"THERMAL LAB COATS (WHITE)-LONG SLEEVE",137,null,10,0]
[7,"THERMAL LAB COATS (WHITE)-LONG SLEEVE",142,null,5,0]
[8,"THERMAL LAB COATS (WHITE)-LONG SLEEVE",147,null,20,0]
[9,"ACID-RESISTANT LABORATORY COATS (NAVY BLUE)","81 - 112",null,250,0]
[10,"ACID-RESISTANT LABORATORY COATS (NAVY BLUE)",117,null,70,0]
[11,"ACID-RESISTANT LABORATORY COATS (NAVY BLUE)",122,null,20,0]
[12,"ACID-RESISTANT LABORATORY COATS (NAVY BLUE)",127,null,15,0]
[13,"ACID-RESISTANT LABORATORY COATS (NAVY BLUE)",132,null,5,0]
[14,"ACID-RESISTANT LABORATORY COATS (NAVY BLUE)",137,null,10,0]
[15,"ACID-RESISTANT LABORATORY COATS (NAVY BLUE)",142,null,5,0]
[16,"ACID-RESISTANT LABORATORY COATS (NAVY BLUE)",147,null,10,{"$f":"+E23*D23","v":0}]
[17,"ACID-RESISTANT LABORATORY (JACKET NAVY BLUE) FOR FEMALE AND MALE","SMALL",null,40,{"$f":"+E24*D24","v":0}]
[18,"ACID-RESISTANT LABORATORY (JACKET NAVY BLUE) FOR FEMALE AND MALE","MEDIUM",null,50,0]
[19,"ACID-RESISTANT LABORATORY (JACKET NAVY BLUE) FOR FEMALE AND MALE","LARGE",null,40,0]
[20,"ACID-RESISTANT LABORATORY (JACKET NAVY BLUE) FOR FEMALE AND MALE","X-LARGE",null,30,0]
[21,"ACID-RESISTANT LABORATORY JACKET NAVY BLUE) FOR FEMALE AND MALE","2XL",null,20,0]
[22,"ACID-RESISTANT LABORATORY JACKET NAVY BLUE) FOR FEMALE AND MALE","3XL",null,10,0]
[23,"ACID-RESISTANT LABORATORY JACKET NAVY BLUE) FOR FEMALE AND MALE","4XL",null,5,0]
[24,"ACID-RESISTANT LABORATORY (TROUSER NAVY BLUE) FOR FEMALE AND MALE ","SMALL",null,40,0]
[25,"ACID-RESISTANT LABORATORY (TROUSER NAVY BLUE) FOR FEMALE AND MALE ","MEDIUM",null,50,0]
[26,"ACID-RESISTANT LABORATORY (TROUSER NAVY BLUE) FOR FEMALE AND MALE ","LARGE",null,40,0]
[27,"ACID-RESISTANT LABORATORY (TROUSER NAVY BLUE) FOR FEMALE AND MALE ","X-LARGE",null,30,0]
[28,"ACID-RESISTANT LABORATORY (TROUSER NAVY BLUE) FOR FEMALE AND MALE","2XL",null,20,0]
[29,"ACID-RESISTANT LABORATORY (TROUSER NAVY BLUE) FOR FEMALE AND MALE ","3XL",null,10,0]
[30,"ACID-RESISTANT LABORATORY (TROUSER NAVY BLUE) FOR FEMALE AND MALE ","4XL",null,5,0]
[31,"THERMAL FREEZER SUIT (JACKET)","SMALL",null,40,0]
[32,"THERMAL FREEZER SUIT (JACKET)","MEDIUM",null,50,0]
[33,"THERMAL FREEZER SUIT (JACKET)","LARGE",null,40,0]
[34,"THERMAL FREEZER SUIT (JACKET)","X-LARGE",null,30,0]
[35,"THERMAL FREEZER SUIT (JACKET)","2XL",null,20,0]
[36,"THERMAL FREEZER SUIT (JACKET)","3XL",null,10,0]
[37,"THERMAL FREEZER SUIT (JACKET)","4XL",null,5,0]
[38,"THERMAL FREEZER SUIT(TROUSERS)","S",null,20,0]
[39,"THERMAL FREEZER SUIT(TROUSERS)","M",null,20,0]
[40,"THERMAL FREEZER SUIT(TROUSERS)","L",null,20,0]
[41,"THERMAL FREEZER SUIT(TROUSERS)","2XL",null,20,0]
[42,"THERMAL FREEZER SUIT(TROUSERS)","3XL",null,20,0]
[43,"TWO-PIECE CONTI SUITS","SMALL",null,20,0]
[44,"TWO-PIECE CONTI SUITS","MEDIUM",null,20,0]
[45,"TWO-PIECE CONTI SUITS","LARGE",null,20,0]
[46,"TWO-PIECE CONTI SUITS","X-LARGE",null,20,{"$f":"+E53*D53","v":0}]
[47,"TWO-PIECE CONTI SUITS","2XL",null,20,{"$f":"+E54*D54","v":0}]
[48,"TWO-PIECE CONTI SUITS","3XL",null,20,0]
[49,"TWO-PIECE CONTI SUITS","4XL",null,20,0]
[50,"TWO-PIECE WATERPROOF RAIN SUIT","S",null,20,0]
[51,"TWO-PIECE WATERPROOF RAIN SUIT","M",null,20,0]
[52,"TWO-PIECE WATERPROOF RAIN SUIT","L",null,20,0]
[53,"TWO-PIECE WATERPROOF RAIN SUIT","2XL",null,20,0]
[54,"TWO-PIECE WATERPROOF RAIN SUIT","3XL",null,20,0]
[55,"TWO-PIECE WATERPROOF RAIN SUIT","4XL",null,20,0]
[56,"HIGH-VISIBILITY REFLECTOR VESTS","S",null,20,0]
[57,"HIGH-VISIBILITY REFLECTOR VESTS","M",null,20,0]
[58,"HIGH-VISIBILITY REFLECTOR VESTS","L",null,20,0]
[59,"HIGH-VISIBILITY REFLECTOR VESTS","2XL",null,20,0]
[60,"HIGH-VISIBILITY REFLECTOR VESTS","3XL",null,20,0]
[61,"HIGH VISIBLE VEST FOR FIRE FIGHTERS","S",null,20,0]
[62,"HIGH VISIBLE VEST FOR FIRE FIGHTERS","M",null,20,0]
[63,"HIGH VISIBLE VEST FOR FIRE FIGHTERS","L",null,20,0]
[64,"HIGH VISIBLE VEST FOR FIRE FIGHTERS","2XL",null,20,0]
[65,"HIGH VISIBLE VEST FOR FIRE FIGHTERS","3XL",null,20,0]
[66,"WOMEN’S TWO-PIECE POLYCOTTON OVERALL SET","S",null,20,0]
[67,"WOMEN’S TWO-PIECE POLYCOTTON OVERALL SET","M",null,20,0]
[68,"WOMEN’S TWO-PIECE POLYCOTTON OVERALL SET","L",null,20,0]
[69,"WOMEN’S TWO-PIECE POLYCOTTON OVERALL SET","2XL",null,20,0]
[70,"WOMEN’S TWO-PIECE POLYCOTTON OVERALL SET","3XL",null,20,0]
[71,"WOMEN’S POLYCOTTON CLEANING PINAFORE (TABARD)","S",null,20,0]
[72,"WOMEN’S POLYCOTTON CLEANING PINAFORE (TABARD)","M",null,20,0]
[73,"WOMEN’S POLYCOTTON CLEANING PINAFORE (TABARD)","L",null,20,0]
[74,"WOMEN’S POLYCOTTON CLEANING PINAFORE (TABARD)","2XL",null,20,0]
[75,"PACKHOUSE INSPECTION RESPIRATORY MASKS (FFP2)","ALL SIZES",null,10,0]
[76,"LABORATORY REUSABLE CHEMICAL RESPIRATORS","ALL SIZES",null,10,0]
[77,"INDUSTRIAL SAFETY HARD HATS (TYPE 1)","ALL SIZES",null,10,0]
[78,"HIGH-PERFORMANCE SAFETY GOGGLES & EYE PROTECTION","ALL SIZES",null,100,0]
[79,"WIDE-VISION SAFETY GOGGLES","ALL SIZES",null,50,0]
[80,"INDUSTRIAL RECHARGEABLE LED HEADLAMP WITH MOTION SENSOR","ALL SIZES",null,50,0]
[81,"Reusable Single Half-Mask Facepiece","ALL SIZES",null,50,0]
[82,"Reusable Twin (Double) Half-Face Mask Respirator","ALL SIZES",null,50,0]
[83,"Gas & Vapour Filter Cartridges (3M Reusable Series / Equivalent)","ALL SIZES",null,50,0]
[84,"ULTRA-HIGH PROTECTION LABORATORY CHEMICAL GLOVES (ACID-PROHIBITION TIER)","ALL SIZES",null,"size100 boxes of each"]
[85,"Mechanical Cut Level 5 Gloves ","ALL SIZES",null,"size100 boxes of each"]
[86,"Heat-Resistant Silicone Gloves","ALL SIZES",null,"size100 boxes of each"]
[87,"Synthetic Thermal Freezer Gloves (100% Latex-Free)","ALL SIZES",null,"size100 boxes of each"]
[88,"Chemical-Resistant Nitrile Gloves","ALL SIZES",null,"size100 boxes of each"]
[89,"Industrial Hearing Protectors (Earplugs / Earmuffs)","ALL SIZES",null,"size100 boxes of each"]
[90,"Mop Cap (21\" navy, double elastic)","ALL SIZES",null,50]
[91,"REGULATION 7 FIRST AID KIT – OFFICE PREMISES","ALL SIZES",null,50,0]
[92,"HIGH-SECURITY REGULATION 7 FIRST AID KIT – ISO 17025 LABORATORY PREMISES","ALL SIZES",null,50,0]
[93,"25L CHEMICAL / HAZARDOUS ACID BUCKET SPILL KIT","ALL SIZES",null,50,0]
[94,"PROFIT ECONA CHELSEA – MALE & FEMALE ","UK Size 3 up to UK Size 14",null,10,0]
[95,"SISI SYDNEY BOOT FOR THE FEMALE & MALE ","UK Size 3 up to UK Size 14",null,57,0]
[96,"LEMAITRE CHELSEA SAFETY BOOTS – MALE & FEMALE","UK Size 3 up to UK Size 14",null,127,0]
[97,"BARRON ARMOUR SATETY SHOE MALE & FEMALE","UK Size 3 up to UK Size 14",null,16,0]
[98,"HI -TEC INTERCEPTOR TELEZA CHELSEA BLACK ","UK Size 3 up to UK Size 14",null,20,0]
[99,"LEMAITRE MAXECO STC SAFETY BOOTS BLACK FOR BOTH MALES & FEMALES","UK Size 3 up to UK Size 14",null,140,0]
[100,"BOVA CHELSEA SAFETY BOOTS STC BLACK – MAKE & FEMALE","UK Size 3 up to UK Size 14",null,30,0]
[]
[]
[null,"BIDDER’S NAME: _______________________________________________"]
[]
[null,"AUTHORISED SIGNATORY: ______________________________________"]
[]
[null,"DATE: _____________________"]

{"sheet":"Sheet2","index":1,"n_rows":77,"n_cols":2,"rows_kept":77,"hidden":true}
["Black pens fine point and click","Box of 50 "]
["Blue pens fine point and click","Box of 50"]
["Red pens fine point and click","Box of 50"]
["Marlin Ultra Glide pen 0.7","Pack of 5"]
["Ruler","Each"]
["Eraser","Each"]
["Pencil","Box of 50"]
["Stapler","Each"]
["Staples 26/6","Box"]
["Staple Remover","Each"]
["Blue ink","Each"]
["Black ink","Each"]
["Red ink","Each"]
["Highlighters","Pack of 10"]
["Pritt","Each"]
["Pre stick","Each"]
["Calculator","Each"]
["White board markers assorted colours","Pack of 10"]
["Cube refill","Each"]
["Sticky notes/ yellow post it ","Pack of 6"]
["Thick clear tape","Each"]
["Scissors","Each"]
["Manilla Folder 100 sheets  yellow","100 Sheets pack"]
["Manilla Folder 100 sheets  green","100 Sheets pack"]
["Laminating A4 pouch 150 mic","Pack of 10"]
[" A4 PVS plastic sleeves 100 per pack","Pack of 100"]
["PVC File dividers A-Z or 1-10","Pack"]
["Lever arch file 70mm and 40mm polyprop","Each"]
["Clear packaging tape ","Each"]
["Brown buffer tape to seal samples sen to lab","Each"]
["3m heavy duty tape mounting","Each"]
["Liquid to clean whiteboard","Each"]
["Pouch for id cards","237 ml each"]
["AAA duracell batteries","Pack of 12"]
["AA duracel batteries","Pack of 12"]
["File fasteners","Pack of 50"]
["Elastic bands","100g"]
["Finger cone various sizes","Pack of 10"]
["Gel pen","Box of 40"]
["Diaries A4 and A5 annual","Each"]
["Masonite clip board","Each"]
["Photocopy paper","Box of 5 reams (500 sheets)"]
[]
["Tippex","Each"]
["Punch Large and small","Each"]
["Large stapler","Each"]
["Staples for large stapler","Box"]
["Pen organizer  holders","Each"]
["Optiplan Folder 440 H/W with flaps","Pack"]
["Pushpin","box"]
["Waste Paper bin-wire","Each"]
["Notice Board","Each"]
["Frames A4","Each"]
["Sorter A-Z","Each"]
["Optiplan Plastic container / holders for Files","Each"]
["Brother barcoded labels","Roll"]
["Small and large ink pads","Each"]
["Selfinking stamps – date stamp","each"]
["Selfinking stamps – passed for export stamp","Each"]
["Selfinking stamps – reject stamp","each"]
["Selfinking stamps – personnel nr stamp","each"]
["Selfinking stamps","each"]
["Selfinking stamp ink – red - stampwell","each"]
["Selfinking stamp ink – blue - stampwell","each"]
["Selfinking stamp ink – black - stampwell","each"]
["Bic clic ballpoint pen medium - black","each"]
["Bic clic ballpoint pen medium - blue","each"]
["Bic ballpoint office pen medium Waltons – red","each"]
["A4 Rotatrim copy paper – 5 reams in box","Box of 5 reams (500 sheets)"]
[]
["Manilla folders – blue","Pack of 100 sheets"]
["Paperclips – king size wavy","Box of 100"]
["Paperclips – giant","Box of 100"]
["EK700 Fine Permanent marker","each"]
["EK70 Bullet point permanent marker","each"]
["Flip file display book (different pocket sizes)","each"]
["Metal file fasteners","Box of 50"]

{"sheet":"Sheet3","index":2,"n_rows":84,"n_cols":10,"rows_kept":84,"hidden":true,"merged":[[1,1,1,5],[4,1,4,3],[5,1,5,3],[7,1,8,1],[7,2,8,2],[7,3,8,3],[7,4,7,5],[7,6,7,7],[7,8,7,9],[74,1,74,5],[77,1,77,5],[78,1,78,5],[79,1,79,5],[81,1,81,5],[82,1,82,5],[83,1,83,5]]}
[]
[null,"ANNEXURE A: PRICING SCHEDULE "]
[null,"RFP/OPSLAB/CHEM/2021/05"]
[]
[null,"FOREX % of the total price per unit ",null,null,"%"]
[null,"NON- FOREX % of the total price per unit ",null,null,"%"]
[]
[null,"Product Description ","Unit of Measure (UOM)","Quantity","Year 1",null,"Year 2",null,"Year 3"]
[{"$nulls":4},"Unit price Including VAT. ","Total Price VAT Incl.","Unit price Including VAT. ","Total Price VAT Incl.","Unit price Including VAT. ","Total Price VAT Incl."]
[null,{"$f":"Sheet2!A1","v":"Black pens fine point and click"},{"$f":"Sheet2!B1","v":"Box of 50 "},1,null,{"$f":"D10*E10","v":{"v":0,"d":"R 0.00"}},null,{"$f":"D10*G10","v":{"v":0,"d":"R 0.00"}},null,{"$f":"D10*I10","v":{"v":0,"d":"R 0.00"}}]
[null,{"$f":"Sheet2!A2","v":"Blue pens fine point and click"},{"$f":"Sheet2!B2","v":"Box of 50"},1,null,{"$f":"D11*E11","v":{"v":0,"d":"R 0.00"}},null,{"$f":"D11*G11","v":{"v":0,"d":"R 0.00"}},null,{"$f":"D11*I11","v":{"v":0,"d":"R 0.00"}}]
[null,{"$f":"Sheet2!A3","v":"Red pens fine point and click"},{"$f":"Sheet2!B3","v":"Box of 50"},1,null,{"v":0,"d":"R 0.00"},null,{"v":0,"d":"R 0.00"},null,{"v":0,"d":"R 0.00"}]
[null,{"$f":"Sheet2!A4","v":"Marlin Ultra Glide pen 0.7"},{"$f":"Sheet2!B4","v":"Pack of 5"},1,null,{"v":0,"d":"R 0.00"},null,{"v":0,"d":"R 0.00"},null,{"v":0,"d":"R 0.00"}]
[null,{"$f":"Sheet2!A5","v":"Ruler"},{"$f":"Sheet2!B5","v":"Each"},1,null,{"v":0,"d":"R 0.00"},null,{"v":0,"d":"R 0.00"},null,{"v":0,"d":"R 0.00"}]
[null,{"$f":"Sheet2!A6","v":"Eraser"},{"$f":"Sheet2!B6","v":"Each"},1,null,{"v":0,"d":"R 0.00"},null,{"v":0,"d":"R 0.00"},null,{"v":0,"d":"R 0.00"}]
[null,{"$f":"Sheet2!A7","v":"Pencil"},{"$f":"Sheet2!B7","v":"Box of 50"},1,null,{"v":0,"d":"R 0.00"},null,{"v":0,"d":"R 0.00"},null,{"v":0,"d":"R 0.00"}]
[null,{"$f":"Sheet2!A8","v":"Stapler"},{"$f":"Sheet2!B8","v":"Each"},1,null,{"v":0,"d":"R 0.00"},null,{"v":0,"d":"R 0.00"},null,{"v":0,"d":"R 0.00"}]
[null,{"$f":"Sheet2!A9","v":"Staples 26/6"},{"$f":"Sheet2!B9","v":"Box"},1,null,{"v":0,"d":"R 0.00"},null,{"v":0,"d":"R 0.00"},null,{"v":0,"d":"R 0.00"}]
[null,{"$f":"Sheet2!A10","v":"Staple Remover"},{"$f":"Sheet2!B10","v":"Each"},1,null,{"v":0,"d":"R 0.00"},null,{"v":0,"d":"R 0.00"},null,{"v":0,"d":"R 0.00"}]
[null,{"$f":"Sheet2!A11","v":"Blue ink"},{"$f":"Sheet2!B11","v":"Each"},1,null,{"v":0,"d":"R 0.00"},null,{"v":0,"d":"R 0.00"},null,{"v":0,"d":"R 0.00"}]
[null,{"$f":"Sheet2!A12","v":"Black ink"},{"$f":"Sheet2!B12","v":"Each"},1,null,{"v":0,"d":"R 0.00"},null,{"v":0,"d":"R 0.00"},null,{"v":0,"d":"R 0.00"}]
[null,{"$f":"Sheet2!A13","v":"Red ink"},{"$f":"Sheet2!B13","v":"Each"},1,null,{"v":0,"d":"R 0.00"},null,{"v":0,"d":"R 0.00"},null,{"v":0,"d":"R 0.00"}]
[null,{"$f":"Sheet2!A14","v":"Highlighters"},{"$f":"Sheet2!B14","v":"Pack of 10"},1,null,{"v":0,"d":"R 0.00"},null,{"v":0,"d":"R 0.00"},null,{"v":0,"d":"R 0.00"}]
[null,{"$f":"Sheet2!A15","v":"Pritt"},{"$f":"Sheet2!B15","v":"Each"},1,null,{"v":0,"d":"R 0.00"},null,{"v":0,"d":"R 0.00"},null,{"v":0,"d":"R 0.00"}]
[null,{"$f":"Sheet2!A16","v":"Pre stick"},{"$f":"Sheet2!B16","v":"Each"},1,null,{"v":0,"d":"R 0.00"},null,{"v":0,"d":"R 0.00"},null,{"v":0,"d":"R 0.00"}]
[null,{"$f":"Sheet2!A17","v":"Calculator"},{"$f":"Sheet2!B17","v":"Each"},1,null,{"v":0,"d":"R 0.00"},null,{"v":0,"d":"R 0.00"},null,{"v":0,"d":"R 0.00"}]
[null,{"$f":"Sheet2!A18","v":"White board markers assorted colours"},{"$f":"Sheet2!B18","v":"Pack of 10"},1,null,{"v":0,"d":"R 0.00"},null,{"v":0,"d":"R 0.00"},null,{"v":0,"d":"R 0.00"}]
[null,{"$f":"Sheet2!A19","v":"Cube refill"},{"$f":"Sheet2!B19","v":"Each"},1,null,{"v":0,"d":"R 0.00"},null,{"v":0,"d":"R 0.00"},null,{"v":0,"d":"R 0.00"}]
[null,{"$f":"Sheet2!A20","v":"Sticky notes/ yellow post it "},{"$f":"Sheet2!B20","v":"Pack of 6"},1,null,{"v":0,"d":"R 0.00"},null,{"v":0,"d":"R 0.00"},null,{"v":0,"d":"R 0.00"}]
[null,{"$f":"Sheet2!A21","v":"Thick clear tape"},{"$f":"Sheet2!B21","v":"Each"},1,null,{"v":0,"d":"R 0.00"},null,{"v":0,"d":"R 0.00"},null,{"v":0,"d":"R 0.00"}]
[null,{"$f":"Sheet2!A22","v":"Scissors"},{"$f":"Sheet2!B22","v":"Each"},1,null,{"v":0,"d":"R 0.00"},null,{"v":0,"d":"R 0.00"},null,{"v":0,"d":"R 0.00"}]
[null,{"$f":"Sheet2!A23","v":"Manilla Folder 100 sheets  yellow"},{"$f":"Sheet2!B23","v":"100 Sheets pack"},1,null,{"v":0,"d":"R 0.00"},null,{"v":0,"d":"R 0.00"},null,{"v":0,"d":"R 0.00"}]
[null,{"$f":"Sheet2!A24","v":"Manilla Folder 100 sheets  green"},{"$f":"Sheet2!B24","v":"100 Sheets pack"},1,null,{"v":0,"d":"R 0.00"},null,{"v":0,"d":"R 0.00"},null,{"v":0,"d":"R 0.00"}]
[null,{"$f":"Sheet2!A25","v":"Laminating A4 pouch 150 mic"},{"$f":"Sheet2!B25","v":"Pack of 10"},1,null,{"v":0,"d":"R 0.00"},null,{"v":0,"d":"R 0.00"},null,{"v":0,"d":"R 0.00"}]
[null,{"$f":"Sheet2!A26","v":" A4 PVS plastic sleeves 100 per pack"},{"$f":"Sheet2!B26","v":"Pack of 100"},1,null,{"v":0,"d":"R 0.00"},null,{"v":0,"d":"R 0.00"},null,{"v":0,"d":"R 0.00"}]
[null,{"$f":"Sheet2!A27","v":"PVC File dividers A-Z or 1-10"},{"$f":"Sheet2!B27","v":"Pack"},1,null,{"v":0,"d":"R 0.00"},null,{"v":0,"d":"R 0.00"},null,{"v":0,"d":"R 0.00"}]
[null,{"$f":"Sheet2!A28","v":"Lever arch file 70mm and 40mm polyprop"},{"$f":"Sheet2!B28","v":"Each"},1,null,{"v":0,"d":"R 0.00"},null,{"v":0,"d":"R 0.00"},null,{"v":0,"d":"R 0.00"}]
[null,{"$f":"Sheet2!A29","v":"Clear packaging tape "},{"$f":"Sheet2!B29","v":"Each"},1,null,{"v":0,"d":"R 0.00"},null,{"v":0,"d":"R 0.00"},null,{"v":0,"d":"R 0.00"}]
[null,{"$f":"Sheet2!A30","v":"Brown buffer tape to seal samples sen to lab"},{"$f":"Sheet2!B30","v":"Each"},1,null,{"v":0,"d":"R 0.00"},null,{"v":0,"d":"R 0.00"},null,{"v":0,"d":"R 0.00"}]
[null,{"$f":"Sheet2!A31","v":"3m heavy duty tape mounting"},{"$f":"Sheet2!B31","v":"Each"},1,null,{"v":0,"d":"R 0.00"},null,{"v":0,"d":"R 0.00"},null,{"v":0,"d":"R 0.00"}]
[null,{"$f":"Sheet2!A32","v":"Liquid to clean whiteboard"},{"$f":"Sheet2!B32","v":"Each"},1,null,{"v":0,"d":"R 0.00"},null,{"v":0,"d":"R 0.00"},null,{"v":0,"d":"R 0.00"}]
[null,{"$f":"Sheet2!A33","v":"Pouch for id cards"},{"$f":"Sheet2!B33","v":"237 ml each"},1,null,{"v":0,"d":"R 0.00"},null,{"v":0,"d":"R 0.00"},null,{"v":0,"d":"R 0.00"}]
[null,{"$f":"Sheet2!A34","v":"AAA duracell batteries"},{"$f":"Sheet2!B34","v":"Pack of 12"},1,null,{"v":0,"d":"R 0.00"},null,{"v":0,"d":"R 0.00"},null,{"v":0,"d":"R 0.00"}]
[null,{"$f":"Sheet2!A35","v":"AA duracel batteries"},{"$f":"Sheet2!B35","v":"Pack of 12"},1,null,{"v":0,"d":"R 0.00"},null,{"v":0,"d":"R 0.00"},null,{"v":0,"d":"R 0.00"}]
[null,{"$f":"Sheet2!A36","v":"File fasteners"},{"$f":"Sheet2!B36","v":"Pack of 50"},1,null,{"v":0,"d":"R 0.00"},null,{"v":0,"d":"R 0.00"},null,{"v":0,"d":"R 0.00"}]
[null,{"$f":"Sheet2!A37","v":"Elastic bands"},{"$f":"Sheet2!B37","v":"100g"},1,null,{"v":0,"d":"R 0.00"},null,{"v":0,"d":"R 0.00"},null,{"v":0,"d":"R 0.00"}]
[null,{"$f":"Sheet2!A38","v":"Finger cone various sizes"},{"$f":"Sheet2!B38","v":"Pack of 10"},1,null,{"v":0,"d":"R 0.00"},null,{"v":0,"d":"R 0.00"},null,{"v":0,"d":"R 0.00"}]
[null,{"$f":"Sheet2!A39","v":"Gel pen"},{"$f":"Sheet2!B39","v":"Box of 40"},1,null,{"v":0,"d":"R 0.00"},null,{"v":0,"d":"R 0.00"},null,{"v":0,"d":"R 0.00"}]
[null,{"$f":"Sheet2!A40","v":"Diaries A4 and A5 annual"},{"$f":"Sheet2!B40","v":"Each"},1,null,{"v":0,"d":"R 0.00"},null,{"v":0,"d":"R 0.00"},null,{"v":0,"d":"R 0.00"}]
[null,{"$f":"Sheet2!A41","v":"Masonite clip board"},{"$f":"Sheet2!B41","v":"Each"},1,null,{"v":0,"d":"R 0.00"},null,{"v":0,"d":"R 0.00"},null,{"v":0,"d":"R 0.00"}]
[null,{"$f":"Sheet2!A42","v":"Photocopy paper"},{"$f":"Sheet2!B42","v":"Box of 5 reams (500 sheets)"},1,null,{"v":0,"d":"R 0.00"},null,{"v":0,"d":"R 0.00"},null,{"v":0,"d":"R 0.00"}]
[null,{"$f":"Sheet2!A43","v":0},{"$f":"Sheet2!B43","v":0},1,null,{"v":0,"d":"R 0.00"},null,{"v":0,"d":"R 0.00"},null,{"v":0,"d":"R 0.00"}]
[null,{"$f":"Sheet2!A44","v":"Tippex"},{"$f":"Sheet2!B44","v":"Each"},1,null,{"v":0,"d":"R 0.00"},null,{"v":0,"d":"R 0.00"},null,{"v":0,"d":"R 0.00"}]
[null,{"$f":"Sheet2!A45","v":"Punch Large and small"},{"$f":"Sheet2!B45","v":"Each"},1,null,{"v":0,"d":"R 0.00"},null,{"v":0,"d":"R 0.00"},null,{"v":0,"d":"R 0.00"}]
[null,{"$f":"Sheet2!A46","v":"Large stapler"},{"$f":"Sheet2!B46","v":"Each"},1,null,{"v":0,"d":"R 0.00"},null,{"v":0,"d":"R 0.00"},null,{"v":0,"d":"R 0.00"}]
[null,{"$f":"Sheet2!A47","v":"Staples for large stapler"},{"$f":"Sheet2!B47","v":"Box"},1,null,{"v":0,"d":"R 0.00"},null,{"v":0,"d":"R 0.00"},null,{"v":0,"d":"R 0.00"}]
[null,{"$f":"Sheet2!A48","v":"Pen organizer  holders"},{"$f":"Sheet2!B48","v":"Each"},1,null,{"v":0,"d":"R 0.00"},null,{"v":0,"d":"R 0.00"},null,{"v":0,"d":"R 0.00"}]
[null,{"$f":"Sheet2!A49","v":"Optiplan Folder 440 H/W with flaps"},{"$f":"Sheet2!B49","v":"Pack"},1,null,{"v":0,"d":"R 0.00"},null,{"v":0,"d":"R 0.00"},null,{"v":0,"d":"R 0.00"}]
[null,{"$f":"Sheet2!A50","v":"Pushpin"},{"$f":"Sheet2!B50","v":"box"},1,null,{"v":0,"d":"R 0.00"},null,{"v":0,"d":"R 0.00"},null,{"v":0,"d":"R 0.00"}]
[null,{"$f":"Sheet2!A51","v":"Waste Paper bin-wire"},{"$f":"Sheet2!B51","v":"Each"},1,null,{"v":0,"d":"R 0.00"},null,{"v":0,"d":"R 0.00"},null,{"v":0,"d":"R 0.00"}]
[null,{"$f":"Sheet2!A52","v":"Notice Board"},{"$f":"Sheet2!B52","v":"Each"},1,null,{"v":0,"d":"R 0.00"},null,{"v":0,"d":"R 0.00"},null,{"v":0,"d":"R 0.00"}]
[null,{"$f":"Sheet2!A53","v":"Frames A4"},{"$f":"Sheet2!B53","v":"Each"},1,null,{"v":0,"d":"R 0.00"},null,{"v":0,"d":"R 0.00"},null,{"v":0,"d":"R 0.00"}]
[null,{"$f":"Sheet2!A54","v":"Sorter A-Z"},{"$f":"Sheet2!B54","v":"Each"},1,null,{"v":0,"d":"R 0.00"},null,{"v":0,"d":"R 0.00"},null,{"v":0,"d":"R 0.00"}]
[null,{"$f":"Sheet2!A55","v":"Optiplan Plastic container / holders for Files"},{"$f":"Sheet2!B55","v":"Each"},1,null,{"v":0,"d":"R 0.00"},null,{"v":0,"d":"R 0.00"},null,{"v":0,"d":"R 0.00"}]
[null,{"$f":"Sheet2!A56","v":"Brother barcoded labels"},{"$f":"Sheet2!B56","v":"Roll"},1,null,{"v":0,"d":"R 0.00"},null,{"v":0,"d":"R 0.00"},null,{"v":0,"d":"R 0.00"}]
[null,{"$f":"Sheet2!A57","v":"Small and large ink pads"},{"$f":"Sheet2!B57","v":"Each"},1,null,{"v":0,"d":"R 0.00"},null,{"v":0,"d":"R 0.00"},null,{"v":0,"d":"R 0.00"}]
[null,{"$f":"Sheet2!A58","v":"Selfinking stamps – date stamp"},{"$f":"Sheet2!B58","v":"each"},1,null,{"v":0,"d":"R 0.00"},null,{"v":0,"d":"R 0.00"},null,{"v":0,"d":"R 0.00"}]
[null,{"$f":"Sheet2!A59","v":"Selfinking stamps – passed for export stamp"},{"$f":"Sheet2!B59","v":"Each"},1,null,{"v":0,"d":"R 0.00"},null,{"v":0,"d":"R 0.00"},null,{"v":0,"d":"R 0.00"}]
[null,{"$f":"Sheet2!A60","v":"Selfinking stamps – reject stamp"},{"$f":"Sheet2!B60","v":"each"},1,null,{"v":0,"d":"R 0.00"},null,{"v":0,"d":"R 0.00"},null,{"v":0,"d":"R 0.00"}]
[null,{"$f":"Sheet2!A61","v":"Selfinking stamps – personnel nr stamp"},{"$f":"Sheet2!B61","v":"each"},1,null,{"v":0,"d":"R 0.00"},null,{"v":0,"d":"R 0.00"},null,{"v":0,"d":"R 0.00"}]
[null,{"$f":"Sheet2!A62","v":"Selfinking stamps"},{"$f":"Sheet2!B62","v":"each"},1,null,{"v":0,"d":"R 0.00"},null,{"v":0,"d":"R 0.00"},null,{"v":0,"d":"R 0.00"}]
[{"$nulls":5},{"$f":"SUM(F10:F71)","v":{"v":0,"d":"R 0.00"}},null,{"$f":"SUM(H10:H71)","v":{"v":0,"d":"R 0.00"}},null,{"$f":"SUM(J10:J71)","v":{"v":0,"d":"R 0.00"}}]
[]
[]
[]
[]
[null,"Offered Annual Rebate: "]
[null,"_____ % rebate on annual increase of R 100 000.00"]
[null,"_____ % rebate on annual increase of R 200 000.00"]
[null,"_____ % rebate on annual increase of R 300 000.00"]
[]
[null,"BIDDER’S NAME: _______________________________________________"]
[null,"AUTHORISED SIGNATORY: ______________________________________"]
[null,"DATE: _____________________"]